{"text_format":"1","workbook":"xlsx","n_sheets":5,"sheets":["With Currency","Euros","AUD","Canadian Dollar","Without Currency"],"not_rendered":{"charts":0,"images":0,"macros":1,"external_links":0,"defined_names":0,"comments":0,"pivot_tables":0},"unopened":[],"bounds":{"document_bytes":16777216,"sheet_cells":100000,"rows_first":2000,"rows_last":500,"rows_between":2000,"halvings":0,"cell_chars":16384,"cell_head_chars":4096},"cells_cut":0,"cells_raw":0,"read":"whole","date_system":"1900"}

{"sheet":"With Currency","index":0,"n_rows":11,"n_cols":3,"rows_kept":11,"cut":false,"hidden":false,"merged":[[1,1,1,2]]}
[]
[null,"Using Spell Number with Currency"]
[]
[null,"Number","Number in Text Form"]
[null,2569.37,{"$f":"SpellNumberX(B5)","v":"Two Thousand Five Hundred Sixty Nine Dollars and Thirty Seven Cents"}]
[null,5423,{"$f":"SpellNumberX(B6)","v":"Five Thousand Four Hundred Twenty Three Dollars and No Cents"}]
[null,77.25,"Seventy Seven Dollars and Twenty Five Cents"]
[null,6459,"Six Thousand Four Hundred Fifty Nine Dollars and No Cents"]
[null,2678,"Two Thousand Six Hundred Seventy Eight Dollars and No Cents"]
[null,5584,"Five Thousand Five Hundred Eighty Four Dollars and No Cents"]
[null,7784,"Seven Thousand Seven Hundred Eighty Four Dollars and No Cents"]

{"sheet":"Euros","index":1,"n_rows":11,"n_cols":3,"rows_kept":11,"cut":false,"hidden":false,"merged":[[1,1,1,2]]}
[]
[null,"Using Spell Number with Currency"]
[]
[null,"Number","Number in Text Form"]
[null,2569.37,{"$f":"SpellNumberX(B5,\"EU\")","v":"Two Thousand Five Hundred Sixty Nine Euros and Thirty Seven Cents"}]
[null,5423,{"$f":"SpellNumberX(B6,\"EU\")","v":"Five Thousand Four Hundred Twenty Three Euros and No Cents"}]
[null,77.25,"Seventy Seven Euros and Twenty Five Cents"]
[null,6459,"Six Thousand Four Hundred Fifty Nine Euros and No Cents"]
[null,2678,"Two Thousand Six Hundred Seventy Eight Euros and No Cents"]
[null,5584,"Five Thousand Five Hundred Eighty Four Euros and No Cents"]
[null,7784,"Seven Thousand Seven Hundred Eighty Four Euros and No Cents"]

{"sheet":"AUD","index":2,"n_rows":11,"n_cols":3,"rows_kept":11,"cut":false,"hidden":false,"merged":[[1,1,1,2]]}
[]
[null,"Using Spell Number with Currency"]
[]
[null,"Number","Number in Text Form"]
[null,2569.37,{"$f":"SpellNumberX(B5,\"AU\")","v":"Two Thousand Five Hundred Sixty Nine Australian Dollars and Thirty Seven Cents"}]
[null,5423,{"$f":"SpellNumberX(B6,\"AU\")","v":"Five Thousand Four Hundred Twenty Three Australian Dollars and No Cents"}]
[null,77.25,"Seventy Seven Australian Dollars and Twenty Five Cents"]
[null,6459,"Six Thousand Four Hundred Fifty Nine Australian Dollars and No Cents"]
[null,2678,"Two Thousand Six Hundred Seventy Eight Australian Dollars and No Cents"]
[null,5584,"Five Thousand Five Hundred Eighty Four Australian Dollars and No Cents"]
[null,7784,"Seven Thousand Seven Hundred Eighty Four Australian Dollars and No Cents"]

{"sheet":"Canadian Dollar","index":3,"n_rows":11,"n_cols":3,"rows_kept":11,"cut":false,"hidden":false,"merged":[[1,1,1,2]]}
[]
[null,"Using Spell Number with Currency"]
[]
[null,"Number","Number in Text Form"]
[null,2569.37,{"$f":"SpellNumberX(B5,\"CA\")","v":"Two Thousand Five Hundred Sixty Nine Canadian Dollars and Thirty Seven Cents"}]
[null,5423,{"$f":"SpellNumberX(B6,\"CA\")","v":"Five Thousand Four Hundred Twenty Three Canadian Dollars and No Cents"}]
[null,77.25,"Seventy Seven Canadian Dollars and Twenty Five Cents"]
[null,6459,"Six Thousand Four Hundred Fifty Nine Canadian Dollars and No Cents"]
[null,2678,"Two Thousand Six Hundred Seventy Eight Canadian Dollars and No Cents"]
[null,5584,"Five Thousand Five Hundred Eighty Four Canadian Dollars and No Cents"]
[null,7784,"Seven Thousand Seven Hundred Eighty Four Canadian Dollars and No Cents"]

{"sheet":"Without Currency","index":4,"n_rows":11,"n_cols":3,"rows_kept":11,"cut":false,"hidden":false,"merged":[[1,1,1,2]]}
[]
[null,"Using Spell Number Without Currency"]
[]
[null,"Number","Number in Text Form"]
[null,2569.37,{"$f":"SpellNumberY(B5)","v":"Two Thousand Five Hundred Sixty Nine Point Three Seven "}]
[null,5423,{"$f":"SpellNumberY(B6)","v":"Five Thousand Four Hundred Twenty Three"}]
[null,77.25,"Seventy Seven Point Two Five "]
[null,6459,"Six Thousand Four Hundred Fifty Nine"]
[null,2678,"Two Thousand Six Hundred Seventy Eight"]
[null,5584,"Five Thousand Five Hundred Eighty Four"]
[null,7784,"Seven Thousand Seven Hundred Eighty Four"]